Cogmind - Beta 15 @@@ ROGUE MODE // 2025.08.23 @ 15:57:04 Player: Cracklepappy Result: Destroyed by MU-KT1(E) with Overtuned Barrage Gun Performance ------------- Evolutions (1) 500 Regions Visited (7) 1400 Robots Destroyed (144) 720 Value Destroyed (4537) 4537 Prototype IDs (37) 740 Alien Tech Used (0) 0 Bonus (-3273) -3273 TOTAL SCORE: 4624 Bonus ------- High Alert Combat Kills 440 Follower Combat Kills 274 Entered Garrisons 200 Registered with UFD 300 Friendly Fire -4487 Cogmind --------- Core Integrity 0/400 Matter 216/300 Energy 269/280 System Corruption 4% Temperature Cool (67) Movement Rolling (150) Ox4 Location -9/Scraptown Parts ------- > --- POWER (1) -------- Cooled Ion Engine > --- PROPULSION (2) --- Armored Wheel Armored Wheel > --- UTILITY (2) ------ Heat Sink Huge Storage Unit > --- WEAPON (4) ------- Precision Phase Gun Advanced Beam Cannon Heavy Assault Rifle Improved Assault Rifle > --- INVENTORY (25) --- Wheel Armored Wheel Armored Wheel High-capacity Matter Pod (200) Scrapoid Pod Scrapoid Pod Scrapoid Pod Scrapoid Pod Rocket Launcher Experimental Remote Datajack LU-1G1's Laser Shovel Plasma Cutter CPS Tube (2) Voltaic Drivehammer (0/40) Axe DM-GVY's Chainsaw Peak State ------------ > --- POWER ------------ Cooled Ion Engine > --- PROPULSION ------- Armored Wheel Armored Wheel > --- UTILITY ---------- Huge Storage Unit Advanced Powered Armor > --- WEAPON ----------- Improved Assault Rifle LU-1G1's Laser Shovel Axe DM-GVY's Chainsaw > --- INVENTORY -------- Armored Wheel Armored Wheel Heat Sink Large Storage Unit High-capacity Matter Pod High-capacity Matter Pod Scrapoid Pod Scrapoid Pod Scrapoid Pod Precision Phase Gun Advanced Beam Cannon Heavy Assault Rifle Heavy Assault Rifle Autogun Improved Light Cannon Rocket Launcher Experimental Remote Datajack Plasma Cutter CPS Tube Vortex Trap Deploy-a-Sentry [Rating: 45] Favorites ----------- Power Cooled Ion Engine Engine Cooled Ion Engine Propulsion Armored Wheel Wheel Armored Wheel Utility Huge Storage Unit Device Heat Sink Storage Huge Storage Unit Processor Signal Interpreter Hackware Hacking Suite Protection Core Shielding Weapon Improved Assault Rifle Energy Gun EM Shotgun Energy Cannon Advanced Beam Cannon Ballistic Gun Improved Assault Rifle Ballistic Cannon Improved Light Cannon Launcher Grenade Launcher Special Weapon Experimental Remote Datajack Slashing Weapon Axe Special Melee Weapon Datajack Build | -11 -10 -10 -9 -9 -9 -9 -9 ------- Run | Yrd Mat Min Mat Sto Gar Rec Scr Slots Evolved 2 | . . . 2 . . . . Power . | . . . . . . . . Propulsion . | . . . . . . . . Utility . | . . . . . . . . Weapon 2 | . . . 2 . . . . Parts Attached 78 | 10 15 5 18 11 7 . 12 Power 7 | 2 . 1 2 1 1 . . Engine 7 | 2 . 1 2 1 1 . . Core . | . . . . . . . . Reactor . | . . . . . . . . Propulsion 17 | 3 4 2 2 4 . . 2 Treads . | . . . . . . . . Leg . | . . . . . . . . Wheel 17 | 3 4 2 2 4 . . 2 Hover . | . . . . . . . . Flight . | . . . . . . . . Utility 17 | 2 4 . 5 2 3 . 1 Device 9 | 1 1 . 3 1 3 . . Storage 3 | 1 2 . . . . . . Processor 2 | . . . 2 . . . . Hackware 1 | . . . . 1 . . . Protection 2 | . 1 . . . . . 1 Artifact . | . . . . . . . . Weapon 37 | 3 7 2 9 4 3 . 9 Energy Gun 7 | 2 4 . . . . . 1 Energy Cannon 4 | . . . 2 1 1 . . Ballistic Gun 16 | 1 . 1 7 1 2 . 4 Ballistic Cannon 1 | . . . . . . . 1 Launcher 2 | . 1 1 . . . . . Special Weapon 4 | . 1 . . 1 . . 2 Impact Weapon . | . . . . . . . . Slashing Weapon 2 | . . . . 1 . . 1 Piercing Weapon . | . . . . . . . . Special Melee Weapon 1 | . 1 . . . . . . Unidentified Prototypes 2 | . . . 1 . . . 1 Parts Lost 18 | . 6 2 2 2 1 . 5 Power 1 | . 1 . . . . . . Propulsion 6 | . 3 1 1 1 . . . Utility 4 | . 1 . 1 1 . . 1 Weapon 7 | . 1 1 . . 1 . 4 Highest Loss Streak 4 | . 4 1 1 1 1 . 4 To Critical Strikes . | . . . . . . . . Average Backups 23 | 5 20 24 24 24 24 25 24 Power . | . . 1 1 1 . . . Propulsion 4 | 2 3 3 2 4 4 4 3 Utility 7 | . 6 10 8 7 7 7 6 Weapon 9 | 1 9 8 9 10 9 12 11 Tool/Special . | . . . . . . . . Unused Backups 54 | 1 5 5 12 9 1 . 21 Power 2 | . 1 . 1 . . . . Propulsion 8 | . 2 1 2 . . . 3 Utility 18 | 1 1 3 5 1 1 . 6 Weapon 21 | . 1 1 4 8 . . 7 Tool/Special 5 | . . . . . . . 5 Average Slot Usage (%) 99 | . 99 99 99 99 100 100 99 Engine 11 | . 13 14 11 11 11 11 11 Wheel 23 | . 27 27 21 21 22 22 22 Device 8 | . 11 . 8 9 10 11 7 Storage 11 | . 14 14 11 11 11 11 11 Protection 3 | . 1 14 2 . . . 3 Energy Gun 5 | . 22 15 . . . . . Energy Cannon 5 | . . . 8 10 7 10 3 Ballistic Gun 24 | . 3 1 34 31 33 33 31 Ballistic Cannon 1 | . . . . . . . 7 Launcher 1 | . . 11 . . . . . Peak Build Rating 45 | 7 12 13 26 28 28 28 45 Average Rating 22 | 6 10 11 21 27 25 28 30 On Entrance 17 | . 7 12 12 26 28 28 28 Naked Turns . | . . . . . . . . Heaviest Build 116 | 13 92 92 102 102 102 102 116 Greatest Support 26 | 26 20 20 20 24 24 24 24 Greatest Overweight (x) 10 | . 4 4 10 5 4 4 4 Average Overweight (x) 3 | . 2 4 4 4 4 4 4 Largest Inventory Capacity 25 | 8 25 25 25 25 25 25 25 Average Capacity 24 | 7 22 25 25 25 25 25 25 Most Carried 25 | 8 25 25 25 25 25 25 25 Average Carried 23 | 5 20 24 24 24 24 25 24 Final Capacity 25 | 8 25 25 25 25 25 25 25 Final Carried 25 | 8 25 25 25 25 25 25 20 Class Distribution -------------------- 53% | Gunner 27% | Mutant 10% | Tank 5% | Commander-Gunner Dominant Class ---------------- Mutant | -10/Materials Mutant | -10/Mines Gunner | -9/Materials Gunner | -9/Storage Gunner | -9/Garrison Gunner | -9/Recycling Gunner | -9/Scraptown Resources | -11 -10 -10 -9 -9 -9 -9 -9 ----------- Run | Yrd Mat Min Mat Sto Gar Rec Scr Matter Collected 3628 | 344 381 284 778 879 561 98 303 Remotely . | . . . . . . . . Salvage Created 5677 | 238 459 89 1058 1946 1211 418 258 Parts 335 | 19 37 4 74 109 63 14 15 Haulers Intercepted 11 | . 1 . 4 6 . . . Recyclers Shooed 5 | . 1 . 3 . . 1 . Parts Field Recycled . | . . . . . . . . Retrieved Matter . | . . . . . . . . Parts Self-Destructed . | . . . . . . . . Prevented . | . . . . . . . . Kills | -11 -10 -10 -9 -9 -9 -9 -9 ------- Run | Yrd Mat Min Mat Sto Gar Rec Scr Combat Hostiles Destroyed 91 | . 11 3 24 22 24 3 4 Guns 44 | . 3 2 15 8 12 1 3 Cannons 36 | . . . 9 12 12 2 1 AOE 9 | . 8 1 . . . . . Classes Destroyed 18 | 3 7 1 1 1 1 . 4 Worker 11 | 2 2 . 1 6 . . . Builder 5 | . 2 . 1 2 . . . Tunneler 7 | 6 . . . . . . 1 Hauler 11 | . 1 . 4 6 . . . Recycler 9 | 1 1 . 1 3 . 3 . Mechanic 2 | . 1 . 1 . . . . Operator 2 | . 1 . . 1 . . . Watcher 6 | . 1 . 3 2 . . . Swarmer 20 | . 6 . 14 . . . . Grunt 40 | . 5 2 6 9 18 . . Brawler 1 | . . . . . 1 . . Duelist 2 | . . . . 1 1 . . Sentry 23 | . . . 4 12 4 3 . Explorer 1 | . . . . . . . 1 Guru 1 | . . . . . . . 1 Scrapper 1 | . . . . . . . 1 Elite 1 | . . . . . . . 1 Assembled 1 | . . 1 . . . . . Best Kill Streak 6 | 4 6 1 6 4 3 3 2 Combat Bots Only 5 | . 4 1 5 3 3 1 2 Max Kills in Single Turn 3 | 1 3 1 2 1 1 1 1 Gunslinging . | . . . . . . . . Exploded 2 | . 2 1 . . . . . Melee . | . . . . . . . . Uniques/NPCs Destroyed 1 | . . . . . 1 . . AZ-K3N (-9/Garrison) Combat | -11 -10 -10 -9 -9 -9 -9 -9 -------- Run | Yrd Mat Min Mat Sto Gar Rec Scr Hostile Shots Fired 302 | . 54 9 79 54 36 6 64 Missed 77 | . 13 1 20 19 9 1 14 Hits 225 | . 41 8 59 35 27 5 50 Melee 10 | . . . . 1 3 . 6 Projectile 215 | . 41 8 59 34 24 5 44 Critical Strikes 8 | . 1 2 2 1 2 . . Damage Taken 3799 | . 506 109 581 554 382 68 1599 Core 537 | . 107 19 66 43 89 . 213 Absorbed by Shields . | . . . . . . . . Redirected to Shielding 8 | . . 4 4 . . . . Core Remaining (%) 74 | 100 . 49 . . . . . Volleys Fired 320 | 44 67 8 63 60 60 7 11 Largest 4 | 2 2 2 4 4 4 4 4 Hottest 208 | 60 100 90 137 137 137 139 208 Shots Fired 933 | 88 119 15 246 228 168 31 38 Gun 725 | 88 108 11 191 168 108 24 27 Cannon 174 | . . . 55 60 43 7 9 Launcher 11 | . 7 4 . . . . . Special 23 | . 4 . . . 17 . 2 Kinetic 611 | 44 38 4 191 168 108 24 34 Thermal 271 | 42 45 . 55 60 60 7 2 Explosive 11 | . 7 4 . . . . . Electromagnetic 38 | 2 29 7 . . . . . Robot Hit Streak 14 | 12 10 7 10 9 14 11 13 Robot Miss Streak 6 | 3 5 1 6 3 3 3 3 Penetration Max . | . . . . . . . . Secondary Targets . | . . . . . . . . Shots Hit Robots 492 | 47 75 9 115 115 94 13 24 Core Hits 208 | 12 34 10 44 51 42 6 9 Critical Kills 3 | . . . 1 2 . . . Critical Parts Destroyed 1 | . . . . . 1 . . Critical Strikes 9 | . . . 1 3 5 . . Meltdown 2 | . . . . 2 . . . Destroy 2 | . . . 1 . 1 . . Sever 5 | . . . . 1 4 . . Melee Attacks 45 | . . . . 14 21 . 10 Impact . | . . . . . . . . Slashing 42 | . . . . 14 18 . 10 Piercing . | . . . . . . . . Sneak Attacks 29 | . . . . 8 20 . 1 Combat Hostiles . | . . . . . . . . Follow-up Attacks . | . . . . . . . . Damage Inflicted 9556 | 402 1363 181 1977 2476 2428 271 458 Guns 4808 | 402 800 133 1277 1110 665 167 254 Cannons 2120 | . . . 700 758 434 104 124 Explosions 611 | . 563 48 . . . . . Melee 1859 | . . . . 607 1172 . 80 Ramming 1 | . . . . 1 . . . Kinetic 3882 | 146 155 31 1277 1110 665 167 331 Thermal 2890 | 229 461 . 700 758 591 104 47 Explosive 480 | . 432 48 . . . . . Electromagnetic 444 | 27 315 102 . . . . . Impact . | . . . . . . . . Slashing 1859 | . . . . 607 1172 . 80 Piercing . | . . . . . . . . Highest Corruption 4 | . . . . . 1 1 4 Average Corruption 1 | . . . . . 1 1 3 Corruption Purged . | . . . . . . . . Corruption Blocked . | . . . . . . . . Effects 24 | . . . . . 9 8 7 Message Errors 7 | . . . . . 1 2 4 Matter Fused 3 | . . . . . 2 1 . Heat Flow Errors 2 | . . . . . 1 1 . Energy Discharges 2 | . . . . . 1 . 1 Parts Rejected 2 | . . . . . 1 . 1 Data Loss (minor) 3 | . . . . . 2 1 . Data Loss (major) 1 | . . . . . 1 . . Misfires 3 | . . . . . . 3 . Alerts 1 | . . . . . . . 1 Overload Shots . | . . . . . . . . Overflow Damage 229 | . 10 . 11 208 . . . Projectiles 11 | . . . 11 . . . . Explosions 10 | . 10 . . . . . . Melee 208 | . . . . 208 . . . Knockbacks 2 | . . . . . . . 2 Impact . | . . . . . . . . Kinetic 2 | . . . . . . . 2 Secondary . | . . . . . . . . Self-Inflicted Damage 59 | . 59 . . . . . . Shots 3 | . 3 . . . . . . Rammed 1 | . . . . 1 . . . Targets Rammed 1 | . . . . 1 . . . Kicked . | . . . . . . . . Crushed . | . . . . . . . . Highest Temperature 274 | 60 274 43 101 132 198 84 132 Average Temperature 33 | 26 51 17 24 21 36 31 64 Received Heat Transfer 894 | . 207 63 138 180 147 27 132 Siege Activations . | . . . . . . . . Martial Activations . | . . . . . . . . Shielding Activations . | . . . . . . . . Robots Disrupted . | . . . . . . . . Combat Hostiles . | . . . . . . . . Robots Corrupted . | . . . . . . . . Combat Hostiles . | . . . . . . . . Parts Fried 2 | . . 2 . . . . . Impact Corruptions . | . . . . . . . . Robots Melted 2 | . . . . 2 . . . Combat Hostiles 2 | . . . . 2 . . . Parts Melted 11 | . . . 2 8 . . 1 Heat Transferred 5125 | 525 900 . 1258 1369 838 185 50 Parts Sabotaged . | . . . . . . . . Parts Stolen . | . . . . . . . . Parts Stripped . | . . . . . . . . Power Chain Reactions 1 | . 1 . . . . . . Alert | -11 -10 -10 -9 -9 -9 -9 -9 ------- Run | Yrd Mat Min Mat Sto Gar Rec Scr Maximum Alert Level 4 | . 1 . 1 2 4 2 . Low Security (%) 53 | 100 96 100 85 30 . . . Level 1 15 | . 3 . 14 57 5 . . Level 2 16 | . . . . 12 24 100 . Level 3 4 | . . . . . 24 . . Level 4 8 | . . . . . 45 . . Level 5 . | . . . . . . . . High Security . | . . . . . . . . Max Security . | . . . . . . . . Peak Influence 1486 | 15 215 45 352 500 1486 668 . Initial 668 | . 3 45 . 143 322 668 . Average 333 | 2 83 3 94 273 970 602 . Influence Increases 4119 | 45 515 67 833 1009 1374 276 . Destroy 0b10 Robot/C 1940 | . 220 40 540 500 580 60 . Destroy 0b10 Robot/NC 270 | 45 45 . 55 110 . 15 . Destroy Leader 414 | . 54 10 134 196 20 . . Allied During Kill 160 | . . . 6 81 64 9 . Successful Hack 147 | . 25 . . 38 44 40 . Select Force Hacks 210 | . 30 . 30 . . 150 . Disable Machine 90 | . 15 . 30 30 15 . . Anti-Garrison Action 650 | . . . . . 650 . . Destroy Structure 73 | . 36 17 8 9 1 2 . Partial Spotted 45 | . 30 . . 15 . . . Lose Combat Pursuer 120 | . 60 . 30 30 . . . Influence Decreases 4119 | 40 403 184 493 853 384 1216 546 Entered New Map 1809 | . 2 72 . 197 174 818 546 Time Decay 1970 | 40 341 102 453 636 . 398 . Lost Part 120 | . 60 10 20 20 10 . . Lost Ally 220 | . . . 20 . 200 . . Squads Dispatched 13 | . 3 . 4 6 . . . Investigation 5 | . 1 . 2 2 . . . Extermination . | . . . . . . . . Reinforcement 5 | . 2 . 2 1 . . . Assault . | . . . . . . . . Garrison 3 | . . . . 3 . . . Intercept . | . . . . . . . . Searches Triggered . | . . . . . . . . Construction Impeded . | . . . . . . . . Haulers Reinforced . | . . . . . . . . Active Scanning Responses . | . . . . . . . . Cargo Convoy Interrupts . | . . . . . . . . Stealth | -11 -10 -10 -9 -9 -9 -9 -9 --------- Run | Yrd Mat Min Mat Sto Gar Rec Scr Distress Signals 5 | . 2 . 2 1 . . . Communications Jammed . | . . . . . . . . Distress Signals . | . . . . . . . . Times Spotted 141 | . 23 3 35 32 23 3 22 Peak Tracking Total 14 | . 6 2 5 4 4 1 14 Tactical Retreats 6 | . 1 . 1 1 . . 3 Traps | -11 -10 -10 -9 -9 -9 -9 -9 ------- Run | Yrd Mat Min Mat Sto Gar Rec Scr Traps Triggered 14 | . . . 1 7 6 . . Indirectly . | . . . . . . . . Trap Hack Attempts 22 | . 22 . . . . . . Triggered . | . . . . . . . . Disarmed . | . . . . . . . . Reprogrammed 2 | . 2 . . . . . . Reused 2 | . . . . . . . 2 Traps Extracted . | . . . . . . . . Installed 2 | . . . . . . . 2 Triggered . | . . . . . . . . Most Traps Carried 2 | . . . . . . . 2 Machines | -11 -10 -10 -9 -9 -9 -9 -9 ---------- Run | Yrd Mat Min Mat Sto Gar Rec Scr Machines Disabled 20 | . 1 . 2 2 7 . 8 Max in Single Turn 1 | . 1 . 1 1 1 . 1 Garrison Relay 4 | . . . . . 4 . . Phase Generator 1 | . . . . . 1 . . Machines Repaired . | . . . . . . . . Machines Dismantled 3 | . . . . 1 2 . . Machines Sabotaged . | . . . . . . . . Overloaded Fab Kills . | . . . . . . . . Hacking | -11 -10 -10 -9 -9 -9 -9 -9 --------- Run | Yrd Mat Min Mat Sto Gar Rec Scr Machines Accessed 43 | . 7 1 2 14 6 11 2 Terminals 29 | . 6 . 1 10 6 6 . Fabricators . | . . . . . . . . Repair Stations 1 | . . . . 1 . . . Recycling Units 8 | . 1 . . 2 . 5 . Scanalyzers 1 | . . . 1 . . . . Garrison Access 1 | . . . . 1 . . . Total Hacks 108 | . 22 1 5 38 12 26 4 Successful 59 | . 13 1 3 19 6 13 4 Failed 49 | . 9 . 2 19 6 13 . Catastrophic 7 | . . . 1 1 2 3 . Database Lockouts . | . . . . . . . . Manual 52 | . 15 . 3 13 2 19 . Terminals 81 | . 19 . 2 29 12 19 . Fabricators . | . . . . . . . . Repair Stations 2 | . . . . 2 . . . Recycling Units 14 | . 3 . . 4 . 7 . Scanalyzers 3 | . . . 3 . . . . Garrison Access 3 | . . . . 3 . . . Terminal Hacks 30 | . 4 1 . 10 5 6 4 Record 3 | . . . . . . . 3 Part Schematic 7 | . 2 . . 2 . 3 . Robot Schematic 1 | . . . . . . 1 . Robot Analysis 1 | . . . . 1 . . . Prototype ID Bank 5 | . 1 . . 2 . 2 . Open Door 6 | . . 1 . 3 2 . . Locate Traps 1 | . 1 . . . . . . Registered Components 1 | . . . . 1 . . . Zone Layout 1 | . . . . 1 . . . Garrison Registry 1 | . . . . . 1 . . Patrol Navigation 1 | . . . . . 1 . . Security Stations 1 | . . . . . 1 . . Proto ID Catalog 1 | . . . . . . . 1 Fabricator Hacks . | . . . . . . . . Repair Station Hacks 1 | . . . . 1 . . . Scan Component 1 | . . . . 1 . . . Recycling Unit Hacks 5 | . 1 . . 2 . 2 . Retrieve Components 5 | . 1 . . 2 . 2 . Scanalyzer 2 | . . . 2 . . . . Insert Component 1 | . . . 1 . . . . Analyze 1 | . . . 1 . . . . Garrison Access Hacks 1 | . . . . 1 . . . Unlock Access 1 | . . . . 1 . . . Unauthorized Hacks 20 | . 8 . 1 5 1 5 . Terminals 12 | . 7 . . 4 1 . . Assimilate 1 | . 1 . . . . . . Botnet 4 | . . . . 4 . . . Operators 1 | . 1 . . . . . . Skim 5 | . 5 . . . . . . Override 1 | . . . . . 1 . . Fabricators . | . . . . . . . . Repair Stations . | . . . . . . . . Recycling Units 6 | . 1 . . . . 5 . Tunnel 6 | . 1 . . . . 5 . Scanalyzers 1 | . . . 1 . . . . Extract 1 | . . . 1 . . . . Garrison Access 1 | . . . . 1 . . . Reprogram 1 | . . . . 1 . . . Data Cores Recovered . | . . . . . . . . Used . | . . . . . . . . Hacking Detections 28 | . 7 . 2 10 3 6 . Full Trace Events 5 | . . . . 2 2 1 . Feedback Events 1 | . . . . . 1 . . Corruption 1 | . . . . . 1 . . Feedback Blocked . | . . . . . . . . Robot Schematics Acquired 1 | . . . . . . 1 . Robots Built . | . . . . . . . . Authchips . | . . . . . . . . Time . | . . . . . . . . Total Robot Build Rating . | . . . . . . . . Part Schematics Acquired 14 | . 2 . 7 2 . 3 . Parts Built . | . . . . . . . . Authchips . | . . . . . . . . Time . | . . . . . . . . Total Part Build Rating . | . . . . . . . . Parts Repaired . | . . . . . . . . Time . | . . . . . . . . Parts Recycled . | . . . . . . . . Recycled Matter . | . . . . . . . . Retrieved Matter . | . . . . . . . . Retrieved Components 14 | . 2 . . 10 . 2 . Parts Scanalyzed 1 | . . . 1 . . . . Part Schematics Acquired 1 | . . . 1 . . . . Parts Damaged . | . . . . . . . . Bothacking | -11 -10 -10 -9 -9 -9 -9 -9 ------------ Run | Yrd Mat Min Mat Sto Gar Rec Scr Used RIF Installer . | . . . . . . . . Robots Hacked 3 | . . . . . 1 . 2 Non-combat . | . . . . . . . . Combat 3 | . . . . . 1 . 2 Robot Hacks Applied 3 | . . . . . 1 . 2 parse_system 3 | . . . . . 1 . 2 Relay Couplers Released 14 | . . . . . 14 . . Machine Destruction 14 | . . . . . 14 . . Fabnet Peak Effective % . | . . . . . . . . Robots Rewired 2 | . . . . . 2 . . Allies Hacked . | . . . . . . . . Hacks Repelled . | . . . . . . . . Allies | -11 -10 -10 -9 -9 -9 -9 -9 -------- Run | Yrd Mat Min Mat Sto Gar Rec Scr Total Allies 16 | . . 3 . 10 3 . . Largest Group 10 | . . 3 3 10 10 2 2 Highest-Rated Group 234 | . . 40 40 88 234 56 56 Highest-Rated Ally 178 | . . 16 16 16 178 31 31 Initial Warlord ECA Mod 20 | . . . . . . 10 10 Total Orders 6 | . . . . . . . 6 STAY 2 | . . . . . . . 2 FOLLOW 2 | . . . . . . . 2 GUARD 2 | . . . . . . . 2 Ally Attacks 119 | . . . 16 27 64 . 12 Total Damage 1322 | . . . 200 220 513 . 389 Kills 11 | . . . 3 3 5 . . Allies Corrupted . | . . . . . . . . Allies Melted . | . . . . . . . . Turrets Deployed 1 | . . . . . . . 1 Intel | -11 -10 -10 -9 -9 -9 -9 -9 ------- Run | Yrd Mat Min Mat Sto Gar Rec Scr Active Infowar (turns) 1938 | 187 1751 . . . . . . Seismic 1938 | 187 1751 . . . . . . Robot Analysis Total 1 | . . . . 1 . . . Derelict Logs Recovered 1 | . . 1 . . . . . Drone Launches . | . . . . . . . . Drone Recoveries . | . . . . . . . . Exploration | -11 -10 -10 -9 -9 -9 -9 -9 ------------- Run | Yrd Mat Min Mat Sto Gar Rec Scr Turns Passed 14173 | 279 2059 1574 1317 2246 2078 942 3678 Spaces Moved 7666 | 149 1194 676 638 1066 1104 609 2230 Core 3 | 3 . . . . . . . Treads . | . . . . . . . . Legs . | . . . . . . . . Wheels 7663 | 146 1194 676 638 1066 1104 609 2230 Hover . | . . . . . . . . Flight . | . . . . . . . . Fastest Speed 50 | 50 80 140 140 145 150 150 150 Average Speed 144 | 88 124 140 151 149 150 150 150 Slowest Speed 230 | 100 140 140 230 155 150 150 150 Overloaded Moves . | . . . . . . . . Propulsion Burnouts . | . . . . . . . . Robots Hopped . | . . . . . . . . Potential Cave-ins 10 | . . . . . . . 10 Cave-ins Triggered 1 | . . . . . . . 1 Exploration Rate (%) 76 | 7 98 92 42 93 98 94 91 Regions Visited 7 Branch Regions 4 Pre-discovered Areas 9 | . 4 . . . . 5 . Known Exits Taken 4 | . . 1 1 1 . 1 . Unknown Exits Taken 2 | 1 1 . . . . . . Scrap Searched 6 | . . 1 . . . . 5 Spaces Dug 64 | . 16 . . 4 1 . 43 Terrain Destroyed 118 | . 52 19 . 4 1 . 42 Melee 9 | . . . . 4 1 . 4 Projectile 2 | . 1 . . . . . 1 AOE 70 | . 51 19 . . . . . Terrain Rammed . | . . . . . . . . Walls Destroyed . | . . . . . . . . Machines Disabled . | . . . . . . . . Actions | -11 -10 -10 -9 -9 -9 -9 -9 --------- Run | Yrd Mat Min Mat Sto Gar Rec Scr Total 10009 | 213 1642 1297 848 1542 1322 621 2524 Wait 1492 | . 289 588 69 301 32 5 208 Move 7658 | 148 1193 675 637 1065 1103 608 2229 Hop . | . . . . . . . . Pick Up 127 | 9 32 10 31 22 8 . 15 Fast Attach 13 | 7 . . . 3 2 . 1 Attach 30 | . 6 2 8 5 3 . 6 Detach 1 | . . . . . . . 1 Swap 91 | 3 22 4 13 10 17 1 21 Drop 99 | 2 11 10 27 21 9 . 19 Fire 320 | 44 67 8 63 60 60 7 11 Melee 45 | . . . . 14 21 . 10 Ram 1 | . . . . 1 . . . Kick . | . . . . . . . . Crush . | . . . . . . . . Escape Stasis 81 | . . . . 32 48 . 1 Rewire 1 | . . . . . 1 . . Trap 24 | . 22 . . . . . 2 Miscellaneous 26 | . . . . 8 18 . . Route ------- -11/Scrapyard -10/Materials (discovered 6 exits: *Mat x3 / *Min x2 / Sub) -10/Mines (discovered 4 exits: *Mat x2 / Exi / *Sub) -9/Materials (discovered 3 exits: *Mat / [*Min] / *Sto) -9/Storage (discovered 2 exits: *Mat / Gar) -9/Garrison (discovered 3 exits: *Rec x3) -9/Recycling (discovered 2 exits: [*Fac] / *Scr) -9/Scraptown (discovered 2 exits: [*Fac x2]) History --------- Turn | Location | Event 10 | -11/Scrapyard | Discovered new exit (range 16) 280 | -11/Scrapyard | Entered Materials 308 | -10/Materials | Build established: Mutant 350 | -10/Materials | Discovered new exit (range 4) 879 | -10/Materials | Discovered new exit (range 14) 904 | -10/Materials | Discovered new exit (range 16) 1264 | -10/Materials | Lost 4 parts (1p2n1u) 1365 | -10/Materials | Discovered new exit (range 16) 1445 | -10/Materials | Discovered new exit (range 7) 1712 | -10/Materials | Learned location of 1 exit from Recycling 1799 | -10/Materials | Learned 4 Recycling zone layouts 1839 | -10/Materials | Learned location of Subcaves (-10) 1842 | -10/Materials | Learned location of Recycling (-9) 1843 | -10/Materials | Identified exit to Subcaves 1846 | -10/Materials | Learned 2 Mines zone layouts 1857 | -10/Materials | Learned 4 Recycling zone layouts 2339 | -10/Materials | Entered Mines 2340 | -10/Mines | Identified exit to Materials 2466 | -10/Mines | Met a Derelict who couldn't figure out how to use a Trap Extractor 3078 | -10/Mines | Core integrity fell below 50% 3080 | -10/Mines | Found a hidden stash of uninstalled traps 3105 | -10/Mines | Assembled infested the area 3110 | -10/Mines | Assisted by a Guerilla fighting off Assembled 3566 | -10/Mines | Assisted by bots powering up and referring to "LRC-V3" 3585 | -10/Mines | Identified exit to Exiles 3913 | -10/Mines | Entered Materials 3913 | -9/Materials | Accompanied by 3 allies 3913 | -9/Materials | Evolved 2 slots: Weapon x2 4293 | -9/Materials | Discovered new exit (range 7) 4402 | -9/Materials | Discovered new exit (range 13) 4486 | -9/Materials | Identified exit to Materials 4507 | -9/Materials | Build established: Scavenger-Gunner 4588 | -9/Materials | Discovered new exit (range 13) 4821 | -9/Materials | Build established: Gunner 5000 | -9/Materials | Identified exit to Storage 5230 | -9/Materials | Entered Storage 5519 | -9/Storage | Garrison activated, responded to threat 6099 | -9/Storage | Discovered exit to Materials (range 15) 6908 | -9/Storage | Assisted by bots powering up and referring to "LRC-V3" 7087 | -9/Storage | Identified exit to Garrison 7201 | -9/Storage | Build established: Commander-Gunner 7476 | -9/Storage | Entered Garrison 7476 | -9/Garrison | Accompanied by 10 allies 7568 | -9/Garrison | Phase Generator disabled 7684 | -9/Garrison | Triggered checkpoint 7719 | -9/Garrison | Garrison Relay disabled 7741 | -9/Garrison | Lost 5 allies 7790 | -9/Garrison | Triggered checkpoint 7792 | -9/Garrison | Triggered checkpoint 7998 | -9/Garrison | Build established: Gunner 8080 | -9/Garrison | Garrison Relay disabled 8086 | -9/Garrison | Triggered checkpoint 8125 | -9/Garrison | Discovered new exit (range 11) 8230 | -9/Garrison | Triggered checkpoint 8370 | -9/Garrison | Triggered checkpoint 8420 | -9/Garrison | Garrison Relay disabled 8431 | -9/Garrison | Learned Recycling security intel 8473 | -9/Garrison | Discovered new exit (range 13) 8530 | -9/Garrison | Discovered new exit (range 83) 8530 | -9/Garrison | Discovered new exit (range 18) 8530 | -9/Garrison | Discovered new exit (range 57) 8930 | -9/Garrison | Triggered checkpoint 8947 | -9/Garrison | Garrison Relay disabled 9216 | -9/Garrison | Rescued AZ-K3N 9325 | -9/Garrison | Murdered AZ-K3N 9336 | -9/Garrison | Found Adv. Powered Armor 9345 | -9/Garrison | Found Exp. Remote Datajack 9554 | -9/Garrison | Entered Recycling 9554 | -9/Recycling | Accompanied by 2 allies 9555 | -9/Recycling | Identified exit to Scraptown 9863 | -9/Recycling | Discovered new exit (range 16) 10456 | -9/Recycling | Scanned before Scraplab entrance 10477 | -9/Recycling | Entered Scraplab 10496 | -9/Recycling | Entered Scraptown 10496 | -9/Scraptown | Accompanied by 2 allies 10499 | -9/Scraptown | System corruption cleaned by C-Scrubber 10552 | -9/Scraptown | Heard Great Nut preacher, LISTEN AND RECITE! 10786 | -9/Scraptown | Discovered new exit (range 5) 10927 | -9/Scraptown | Visited Cyclists 10976 | -9/Scraptown | Visited SPCMW 11036 | -9/Scraptown | Visited IN-MT5's Study 11062 | -9/Scraptown | Visited Shadow of the Wyrm 11083 | -9/Scraptown | Visited Spacefarers 11547 | -9/Scraptown | Visited UFD Registry 11547 | -9/Scraptown | Registered with UFD as "Microboard" 11596 | -9/Scraptown | Visited Science Guys 11655 | -9/Scraptown | Visited Infowarlord's Domain 11679 | -9/Scraptown | Visited Scrap Suit Storage 11710 | -9/Scraptown | Visited Modified Component R&D 11770 | -9/Scraptown | Visited DA-N13 Charitable Foundation 11776 | -9/Scraptown | Found DCF Scrap (31 items) 11847 | -9/Scraptown | Visited LU-1G1's Boring Crew 11875 | -9/Scraptown | Visited Curators Association 11961 | -9/Scraptown | Visited Abandonware Association 11980 | -9/Scraptown | Learned abandonware demo "MELTYB.EXE" 12016 | -9/Scraptown | Visited Chapter 10 12426 | -9/Scraptown | Discovered new exit (range 3) 12650 | -9/Scraptown | Warned about trapping Scraptown 13115 | -9/Scraptown | Build established: Tank 13886 | -9/Scraptown | Attacked by Scraptown defenders 13898 | -9/Scraptown | Found Prototype Special Weapon 13899 | -9/Scraptown | Identified LU-1G1's Laser Shovel 13912 | -9/Scraptown | Core integrity fell below 50% 13961 | -9/Scraptown | Crushed by falling debris 13968 | -9/Scraptown | Found DM-GVY's Chainsaw 14005 | -9/Scraptown | Found Deploy-a-Sentry 14032 | -9/Scraptown | Found Scrapoid Pod 14040 | -9/Scraptown | Found Scrapoid Pod 14043 | -9/Scraptown | Found Scrapoid Pod 14050 | -9/Scraptown | Found Scrapoid Pod 14098 | -9/Scraptown | DAS Turret deployed 14159 | -9/Scraptown | Found Voltaic Drivehammer 14166 | -9/Scraptown | Core integrity fell below 20% 14174 | -9/Scraptown | Destroyed by MU-KT1(E) with Overtuned Barrage Gun Last Messages --------------- 14159_ Acquired Voltaic Drivehammer. 14163_ Dropped Vortex Trap. 14164_ KX-P7F(p): "Are you the baddie?" 14164_ Installed Vortex Trap. 14165_ EG-48G(x) triggered Vortex Trap. 14165_ A wave of accelerated entropy washes over the area. 14165_ EG-48G(x) destroyed. 14165_ Autogun destroyed. 14165_ Hvy. Assault Rifle destroyed. 14165_ SG-Prototypes Database disabled. 14165_ 40-L5S(p) destroyed. 14165_ DQ-6TS(j) destroyed. 14165_ Machine disabled. 14165_ KX-P7F(p) destroyed. 14165_ Supplies damaged. 14166_ The unstable cave ceiling collapses. 14166_ 20 Matter crushed. 14168_ MU-KT1(E) cannibalizes Lgt. Deuterium Engine to repair Imp. Deuterium Engine. 14173_ Penetrated by Slug. Map ----- +----------------------------------------------------+ | | | ?????????????????????????????????????????????????? | | ?????????????????????????????????????????????????? | | ?????????????????????????????????????????????????? | | ########?????????????????????????????????????????? | | """""""#?????????????????????????????????????????? | | ? "#?????????????????????????????????????????? | | """ "#?????????????????????????????????????????? | | "" "#?????????????????????????????????????????? | | " "#?????????????????????????????????????????? | | "#?????????????????????????????????????????? | | """"""#?????????????????????????????????????????? | | #?????????????????????????????????????????? | | #?????????????????????????????????????????? | | #???????????????????????################### | | """#####???????????????????????"""##"""##""|##"""# | | [%"#??????????????????????????#"" ##""!##"" ##!!"# | | |""#??????????????????????????#"" | | """#????????????????????#####?# | | """#????????????????????# # ###################### | | """#??????????????????### ###????????????????? | | ####??????????????#####;;;;;;;; #????????????????? | | ??????????????????#"""" ; ##????????#######? | | ??????????????????#""" ; #????????#"! "? | | ??????????????????#""" ; ######???#" "#? | | ??????????????????#" @ % !; #???## X## | | ??????????????????#""" =%%#!! !#???#" ! | | ??????????????????#""" E;E ! !#???#"! ! | | ??????????????????#"" ; #! !#???#" ! | | ??????????????????#"" ; #! !#???#"! ! | | ??????????????????#"" " ###! !#???#"!% | | ??????????????????# ]"#?# ###### | | ??????????????????#" #?# " " % | | ??????????????????###### ######?#### ########### # | | ????????###????????##### ########### ########### # | | ?????? ????????#""""3""""""""""" """"""""""" " | | ??? ????????#" | | ? ????????#" | | ????????#" | | ? #???????#" | | ?# #???#####" | | ?# #???#"""" """""""""""""""""""""""" | | ?# #???#"""" """""""""""""""""""""""" | | ?# #???#"""" ""###### ############## | | ?# #???#"""" ""# ##??????? | | ?# #???#"""" ""# X"#??????? | | ?# ###?#"""" ""# "" "" ##??????? | | ?# ""#"#"""" ""# "" "" X"#??????# | | ?# """"#"""" ""# " " ######### | | ## ""#?#####" "" "" | +----------------------------------------------------+ Best States ------------- Heat Dissipation 42 Energy Generation 14 Energy Capacity 280 Matter Stores 300 Matter Capacity 300 Sight Range 16 Terrain Scan Density 10 Armor Coverage 400 Core Shielding 20 Evasion (%) 44 Offensive Hacking 10 Item Schematics ----------------- Heat Sink | -10/Materials | Hacked Targeting Computer | -10/Materials | Hacked Wheel | -9/Materials | Scanalyzed Imp. Flight Unit | -9/Materials | Extracted Particle Cannon | -9/Materials | Extracted Imp. Treads | -9/Materials | Extracted Mace | -9/Materials | Extracted Huge Storage Unit | -9/Materials | Extracted Lgt. Treads | -9/Materials | Extracted Arm. Wheel | -9/Storage | Hacked Hpw. Tractor Beam | -9/Storage | Hacked Assault Rifle | -9/Recycling | Hacked Lgt. Ion Engine | -9/Recycling | Hacked Imp. Signal Interpreter | -9/Recycling | Hacked Robot Schematics ------------------ Y-45 Defender | -9/Recycling | Hacked Fabricated ------------ Nothing Repaired ---------- Nothing Alien Tech Used ----------------- None Achievements -------------- None Challenges ------------ None Game ------ Seed FissionBombMount Manual? 0 Play Time 01:20:44 Cumulative 1283.8 hours Start 2025.08.23 @ 14:32:18 End 2025.08.23 @ 15:57:04 Sessions 1 Manual Loads 0 Difficulty Rogue Special Mode None Game No. 608 Rogue 608 Adventurer 0 Explorer 0 Win Type - Total 23 Types 10/4/3/0/1/1/2/2/0/0 Lore% 92 Gallery% 90 Achievement% 84 Wizard Run 0 Options --------- Layout 0 ASCII 0 Keyboard 0 Movement Numpad Keybinds 0 Fullscreen 2 Font 24/Smallcaps Map View 76x50 Zoom Use 0% Tactical HUD 1 Map Filters NONE Filters SHIFT_HUE(315) Steam 1 RUN: 2a8de050-8d2b-4284-beb9-fed881b18efc